Cogmind - Beta 15 @@@ ROGUE MODE // 2025.05.05 @ 22:18:53 Player: jumpy Result: Destroyed by 10-D4F(R) with Subdweller Beam Cannon Performance ------------- Evolutions (0) 0 Regions Visited (2) 400 Robots Destroyed (24) 120 Value Destroyed (240) 240 Prototype IDs (1) 20 Alien Tech Used (0) 0 Bonus (0) 0 TOTAL SCORE: 780 Bonus ------- None Cogmind --------- Core Integrity 0/250 Matter 229/300 Energy 183/200 System Corruption 0% Temperature Cool (9) Movement Treading (160) Location -10/Subcaves Parts ------- > --- POWER (1) -------- Subdweller Power Source > --- PROPULSION (2) --- Light Treads Light Treads > --- UTILITY (2) ------ Small Storage Unit Improved Terrain Scanner > --- WEAPON (2) ------- Improved Assault Rifle > --- INVENTORY (8) ---- Light Ion Engine Improved Assault Rifle Improved Assault Rifle Improved Light Cannon Grenade Launcher Peak State ------------ > --- POWER ------------ Subdweller Power Source > --- PROPULSION ------- Light Treads Light Treads > --- UTILITY ---------- Small Storage Unit Light Armor Plating > --- WEAPON ----------- Improved Assault Rifle Improved Assault Rifle > --- INVENTORY -------- Light Ion Engine Light Treads Light Treads Improved Terrain Scanner Improved Assault Rifle Improved Assault Rifle Improved Light Cannon Grenade Launcher [Rating: 13] Favorites ----------- Power Ion Engine Engine Ion Engine Propulsion Light Treads Treads Light Treads Utility Small Storage Unit Device Seismic Detector Storage Small Storage Unit Protection Light Armor Plating Weapon Improved Assault Rifle Ballistic Gun Improved Assault Rifle Build | -11 -10 -10 ------- Run | Yrd Mat Sub Slots Evolved . | . . . Power . | . . . Propulsion . | . . . Utility . | . . . Weapon . | . . . Parts Attached 16 | 7 5 4 Power 3 | 1 1 1 Engine 3 | 1 1 1 Core . | . . . Reactor . | . . . Propulsion 5 | 2 1 2 Treads 5 | 2 1 2 Leg . | . . . Wheel . | . . . Hover . | . . . Flight . | . . . Utility 4 | 2 1 1 Device 2 | 1 . 1 Storage 1 | 1 . . Processor . | . . . Hackware . | . . . Protection 1 | . 1 . Artifact . | . . . Weapon 4 | 2 2 . Energy Gun . | . . . Energy Cannon . | . . . Ballistic Gun 4 | 2 2 . Ballistic Cannon . | . . . Launcher . | . . . Special Weapon . | . . . Impact Weapon . | . . . Slashing Weapon . | . . . Piercing Weapon . | . . . Special Melee Weapon . | . . . Unidentified Prototypes 1 | . 1 . Parts Lost 6 | . 2 4 Power 1 | . 1 . Propulsion 2 | . . 2 Utility 2 | . 1 1 Weapon 1 | . . 1 Highest Loss Streak 3 | . 1 3 To Critical Strikes 1 | . . 1 Average Backups 6 | 2 7 7 Power . | . . . Propulsion 1 | 1 1 1 Utility . | . 1 1 Weapon 3 | . 3 4 Tool/Special . | . . . Unused Backups 8 | 1 3 4 Power . | . . . Propulsion 2 | . 2 . Utility . | . . . Weapon 6 | 1 1 4 Tool/Special . | . . . Average Slot Usage (%) 98 | . 98 97 Engine 13 | . 13 14 Treads 28 | . 28 28 Device 5 | . 7 . Storage 14 | . 14 14 Protection 8 | . 5 13 Ballistic Gun 27 | . 28 26 Peak Build Rating 13 | 7 12 13 Average Rating 10 | 5 10 12 On Entrance 6 | . 7 12 Naked Turns . | . . . Heaviest Build 19 | 15 19 19 Greatest Support 40 | 40 40 40 Greatest Overweight (x) . | . . . Average Overweight (x) . | . . . Largest Inventory Capacity 8 | 8 8 8 Average Capacity 7 | 7 8 8 Most Carried 8 | 5 8 8 Average Carried 6 | 2 7 7 Final Capacity 8 | 8 8 8 Final Carried 7 | 5 7 5 Class Distribution -------------------- 100% | Mutant Dominant Class ---------------- Mutant | -10/Materials Mutant | -10/Subcaves Resources | -11 -10 -10 ----------- Run | Yrd Mat Sub Matter Collected 689 | 301 325 63 Remotely . | . . . Salvage Created 636 | 164 425 47 Parts 51 | 20 25 6 Haulers Intercepted 2 | . 2 . Recyclers Shooed 1 | . 1 . Parts Field Recycled . | . . . Retrieved Matter . | . . . Parts Self-Destructed 13 | . . 13 Prevented . | . . . Kills | -11 -10 -10 ------- Run | Yrd Mat Sub Combat Hostiles Destroyed 14 | . 11 3 Guns 14 | . 11 3 Classes Destroyed 6 | 3 3 . Worker 1 | 1 . . Tunneler 5 | 5 . . Hauler 2 | . 2 . Recycler 2 | 1 1 . Swarmer 12 | . 9 3 Grunt 2 | . 2 . Best Kill Streak 4 | 4 3 3 Combat Bots Only 3 | . 3 3 Max Kills in Single Turn 2 | 1 2 1 Gunslinging 1 | . 1 . Exploded . | . . . Melee . | . . . Uniques/NPCs Destroyed . | . . . Combat | -11 -10 -10 -------- Run | Yrd Mat Sub Hostile Shots Fired 149 | . 60 89 Missed 44 | . 9 35 Hits 105 | . 51 54 Projectile 105 | . 51 54 Critical Strikes 2 | . . 2 Damage Taken 1139 | . 444 695 Core 251 | . 87 164 Absorbed by Shields . | . . . Core Remaining (%) 100 | 100 . . Volleys Fired 76 | 20 40 16 Largest 2 | 2 2 2 Hottest 46 | 40 46 46 Shots Fired 145 | 40 80 25 Gun 145 | 40 80 25 Cannon . | . . . Launcher . | . . . Special . | . . . Kinetic 145 | 40 80 25 Thermal . | . . . Explosive . | . . . Electromagnetic . | . . . Robot Hit Streak 17 | 9 17 5 Robot Miss Streak 5 | 3 5 2 Penetration Max . | . . . Secondary Targets 1 | . 1 . Max Gunslinging Chain 1 | . 1 . Shots Hit Robots 80 | 24 44 12 Core Hits 30 | 8 18 4 Critical Kills 2 | . 2 . Critical Parts Destroyed 2 | . 1 1 Critical Strikes 5 | . 3 2 Destroy 5 | . 3 2 Melee Attacks . | . . . Impact . | . . . Slashing . | . . . Piercing . | . . . Sneak Attacks . | . . . Combat Hostiles . | . . . Follow-up Attacks . | . . . Damage Inflicted 1104 | 308 631 165 Guns 1103 | 308 630 165 Cannons . | . . . Explosions . | . . . Melee . | . . . Ramming 1 | . 1 . Kinetic 1103 | 308 630 165 Thermal . | . . . Explosive . | . . . Electromagnetic . | . . . Impact . | . . . Slashing . | . . . Piercing . | . . . Highest Corruption . | . . . Average Corruption . | . . . Corruption Purged . | . . . Corruption Blocked . | . . . Overload Shots . | . . . Overflow Damage . | . . . Projectiles . | . . . Explosions . | . . . Melee . | . . . Knockbacks . | . . . Impact . | . . . Kinetic . | . . . Secondary . | . . . Self-Inflicted Damage . | . . . Shots . | . . . Rammed 1 | . 1 . Targets Rammed 1 | . 1 . Kicked . | . . . Crushed . | . . . Highest Temperature 6 | 6 1 . Average Temperature 1 | 6 1 . Received Heat Transfer 306 | . 42 264 Siege Activations . | . . . Martial Activations . | . . . Shielding Activations . | . . . Robots Disrupted . | . . . Combat Hostiles . | . . . Robots Corrupted . | . . . Combat Hostiles . | . . . Parts Fried . | . . . Impact Corruptions . | . . . Robots Melted . | . . . Combat Hostiles . | . . . Parts Melted . | . . . Heat Transferred . | . . . Parts Sabotaged . | . . . Parts Stolen . | . . . Parts Stripped . | . . . Power Chain Reactions . | . . . Alert | -11 -10 -10 ------- Run | Yrd Mat Sub Maximum Alert Level . | . . . Low Security (%) 100 | 100 100 . Level 1 . | . . . Level 2 . | . . . Level 3 . | . . . Level 4 . | . . . Level 5 . | . . . High Security . | . . . Max Security . | . . . Peak Influence 130 | 15 130 . Initial . | . . . Average 38 | 2 48 . Influence Increases 511 | 35 311 165 Destroy 0b10 Robot/C 280 | . 220 60 Destroy 0b10 Robot/NC 50 | 35 15 . Destroy Leader 44 | . 44 . Destroy Structure 2 | . 2 . Lose Combat Pursuer 135 | . 30 105 Influence Decreases 466 | 35 305 126 Entered New Map 4 | . . 4 Time Decay 402 | 35 285 82 Lost Part 60 | . 20 40 Squads Dispatched 1 | . 1 . Investigation 1 | . 1 . Extermination . | . . . Reinforcement . | . . . Assault . | . . . Garrison . | . . . Intercept . | . . . Searches Triggered . | . . . Construction Impeded . | . . . Haulers Reinforced . | . . . Active Scanning Responses . | . . . Cargo Convoy Interrupts . | . . . Stealth | -11 -10 -10 --------- Run | Yrd Mat Sub Distress Signals . | . . . Communications Jammed . | . . . Distress Signals . | . . . Times Spotted 30 | . 15 15 Peak Tracking Total 6 | . 5 6 Tactical Retreats 4 | . 1 3 Traps | -11 -10 -10 ------- Run | Yrd Mat Sub Traps Triggered 3 | . 1 2 Indirectly . | . . . Trap Hack Attempts . | . . . Triggered . | . . . Disarmed . | . . . Reprogrammed . | . . . Reused . | . . . Traps Extracted . | . . . Installed . | . . . Triggered . | . . . Machines | -11 -10 -10 ---------- Run | Yrd Mat Sub Machines Disabled 1 | . . 1 Max in Single Turn 1 | . . 1 Machines Repaired . | . . . Machines Dismantled . | . . . Machines Sabotaged . | . . . Overloaded Fab Kills . | . . . Hacking | -11 -10 -10 --------- Run | Yrd Mat Sub Machines Accessed 2 | . 2 . Terminals 2 | . 2 . Fabricators . | . . . Repair Stations . | . . . Recycling Units . | . . . Scanalyzers . | . . . Garrison Access . | . . . Total Hacks 3 | . 3 . Successful 1 | . 1 . Failed 2 | . 2 . Catastrophic . | . . . Database Lockouts . | . . . Manual 3 | . 3 . Terminals 3 | . 3 . Fabricators . | . . . Repair Stations . | . . . Recycling Units . | . . . Scanalyzers . | . . . Garrison Access . | . . . Terminal Hacks 1 | . 1 . Robot Analysis 1 | . 1 . Fabricator Hacks . | . . . Repair Station Hacks . | . . . Recycling Unit Hacks . | . . . Scanalyzer . | . . . Garrison Access Hacks . | . . . Unauthorized Hacks . | . . . Terminals . | . . . Fabricators . | . . . Repair Stations . | . . . Recycling Units . | . . . Scanalyzers . | . . . Garrison Access . | . . . Data Cores Recovered . | . . . Used . | . . . Hacking Detections 1 | . 1 . Full Trace Events . | . . . Feedback Events . | . . . Feedback Blocked . | . . . Robot Schematics Acquired . | . . . Robots Built . | . . . Authchips . | . . . Time . | . . . Total Robot Build Rating . | . . . Part Schematics Acquired . | . . . Parts Built . | . . . Authchips . | . . . Time . | . . . Total Part Build Rating . | . . . Parts Repaired . | . . . Time . | . . . Parts Recycled . | . . . Recycled Matter . | . . . Retrieved Matter . | . . . Retrieved Components . | . . . Parts Scanalyzed . | . . . Part Schematics Acquired . | . . . Parts Damaged . | . . . Bothacking | -11 -10 -10 ------------ Run | Yrd Mat Sub Used RIF Installer . | . . . Robots Hacked . | . . . Non-combat . | . . . Combat . | . . . Robot Hacks Applied . | . . . Relay Couplers Released . | . . . Fabnet Peak Effective % . | . . . Robots Rewired . | . . . Allies Hacked . | . . . Hacks Repelled . | . . . Allies | -11 -10 -10 -------- Run | Yrd Mat Sub Total Allies . | . . . Largest Group . | . . . Highest-Rated Group . | . . . Highest-Rated Ally . | . . . Total Orders . | . . . Ally Attacks . | . . . Total Damage . | . . . Kills . | . . . Allies Corrupted . | . . . Allies Melted . | . . . Intel | -11 -10 -10 ------- Run | Yrd Mat Sub Active Infowar (turns) 528 | 92 435 1 Terrain 1 | . . 1 Seismic 527 | 92 435 . Robot Analysis Total 1 | . 1 . Derelict Logs Recovered . | . . . Drone Launches . | . . . Drone Recoveries . | . . . Exploration | -11 -10 -10 ------------- Run | Yrd Mat Sub Turns Passed 1397 | 220 821 356 Spaces Moved 589 | 97 303 189 Core 10 | 10 . . Treads 579 | 87 303 189 Legs . | . . . Wheels . | . . . Hover . | . . . Flight . | . . . Fastest Speed 50 | 50 160 160 Average Speed 158 | 148 160 160 Slowest Speed 160 | 160 160 160 Overloaded Moves . | . . . Propulsion Burnouts . | . . . Robots Hopped . | . . . Potential Cave-ins . | . . . Cave-ins Triggered . | . . . Exploration Rate (%) 22 | 9 46 13 Regions Visited 2 Branch Regions 1 Pre-discovered Areas . | . . . Known Exits Taken . | . . . Unknown Exits Taken 2 | 1 1 . Scrap Searched . | . . . Spaces Dug . | . . . Terrain Destroyed . | . . . Melee . | . . . Projectile . | . . . AOE . | . . . Terrain Rammed . | . . . Walls Destroyed . | . . . Machines Disabled . | . . . Actions | -11 -10 -10 --------- Run | Yrd Mat Sub Total 904 | 130 561 213 Wait 206 | . 202 4 Move 587 | 96 302 189 Hop . | . . . Pick Up 12 | 6 6 . Fast Attach 8 | 7 1 . Attach 4 | . 1 3 Detach . | . . . Swap 4 | . 3 1 Drop 6 | 1 5 . Fire 76 | 20 40 16 Melee . | . . . Ram . | . . . Kick . | . . . Crush 1 | . 1 . Escape Stasis . | . . . Rewire . | . . . Trap . | . . . Miscellaneous . | . . . Route ------- -11/Scrapyard -10/Materials (discovered 2 exits: [*Mat] / [*Sub]) -10/Subcaves (discovered 1 exit: [*Rec]) History --------- Turn | Location | Event 3 | -11/Scrapyard | Discovered new exit (range 16) 221 | -11/Scrapyard | Entered Materials 317 | -10/Materials | Build established: Mutant 739 | -10/Materials | Discovered new exit (range 11) 998 | -10/Materials | Discovered new exit (range 8) 1042 | -10/Materials | Entered Subcaves 1043 | -10/Subcaves | Approached by a straggling Scientist 1130 | -10/Subcaves | Shifting Twisted Machinery released Humpback 1131 | -10/Subcaves | Shifting Twisted Machinery released Sub. Power Source 1256 | -10/Subcaves | Discovered new exit (range 13) 1277 | -10/Subcaves | Core integrity fell below 50% 1395 | -10/Subcaves | Core integrity fell below 20% 1398 | -10/Subcaves | Destroyed by 10-D4F(R) with Subdweller Beam Cannon Last Messages --------------- 01256_ Lgt. Assault Rifle fries itself beyond repair. 01256_ Acquired 14 matter. 01256_ EXIT=FOUND 01257_ Flight Unit fries itself beyond repair. 01262_ 9C-70G(c) destroyed. 01263_ Subatomizers dissect the Tech Extrapolator. 01274_ Acquired 31 matter. 01275_ Subatomizers dissect the Tech Extrapolator. 01276_ Tech Extrapolator violently self-destructs. 01343_ Triggered Piercing Trap. 01343_ Spikes shoot up from the floor. 01343_ Critical hit (Impale). 01346_ Triggered Piercing Trap. 01346_ Spikes shoot up from the floor. 01346_ Critical hit (Impale). 01346_ Imp. Assault Rifle destroyed. 01381_ Lgt. Armor Plating destroyed. 01389_ T8-ZYR(R) suffers critical hit (Destroy). 01392_ Critical hit (Destroy). 01392_ Lgt. Treads destroyed. Map ----- +----------------------------------------------------+ | ?????????????????????????????????????????????????? | | ?????????????????????????????????????????????????? | | ?????????????????????????????????????????????????? | | ?????????????????????????????????????????????????? | | ?????????????????????????????????????????????????? | | ?????????????????????????????????????????????????? | | ?????????????????????????????????????????????????? | | ?????????????????????????????????????????????????? | | ?????????????????????????????????????????????????? | | ?????????????????????????????????????????????????? | | ?????????????????????????????????????????????????? | | ?????????????????????????????????????????????????? | | ?????????????????????????????????????????????????? | | ?????????????????????????????????????????????????? | | ?????????????????????????????????????????????????? | | ?????????????????????#"""" ??????????????????????? | | ?????????????????????#"""""??????????????????????? | | ????????????????????? """""??????????????????????? | | ??????????????????????" " ??????????????????????? | | ?????????????????????? " ??????????????????????? | | ??????????????????????? R"######?????????????????? | | ??????????????????????? R # "#?????????????????? | | ???????????????????????? RR" "???????????????????? | | ?????????????????##?????;R #????????????????????? | | ????????????????? ????##R;#??""?????????????????? | | ?????????????????# ????# @#??#""#????????????????? | | ????????????????? ????# ###"""#????????????????? | | ?????????????????# ????# """#?????????????????? | | ?????????????????# ##??# "##?????????????????? | | ????????#???????## #??## ####??????????????????? | | ????????# ?#???# #??## #?????????????????????? | | ???????# ??## #### #?????????????????????? | | ????????? ## ^ ### #?????????????????????? | | ???????????# ### #?????#####???????????? | | ????????????????# ## #????## #???????????? | | ????????????????# ^ #???## ##???????????? | | ????????# ??????## # ## ##???# #????????????? | | ????????# ??????# #######???## ##???????????? | | ????????# #?????# ### #??## #???????????? | | ????????# ###??# #### ##???????????? | | ?????????# #### ## ##????????????? | | ??????????#"""""""""""## ##?????????????? | | ???????????#""""""""""### #??????????????? | | ??????????##" """ #### #??????????????? | | ????????###" " "####?# #??????????????? | | ????????#"""" ##????# #??????????????? | | ????????##""!#####?????## ##??????????????? | | ?????????# "## ##??????## #???????????????? | | ?????????# " " ##??????### #???????????????? | | ?????????###" ##??????# ##???###?????????? | +----------------------------------------------------+ Best States ------------- Heat Dissipation 25 Energy Generation 15 Energy Capacity 250 Matter Stores 300 Matter Capacity 300 Sight Range 16 Terrain Scan Density 10 Armor Coverage 150 Evasion (%) 40 Recoil Reduction 2 Item Schematics ----------------- None Robot Schematics ------------------ None Fabricated ------------ Nothing Repaired ---------- Nothing Alien Tech Used ----------------- None Achievements -------------- None Challenges ------------ None Game ------ Seed XenonRegenerativeStick Manual? 0 Play Time 00:08:47 Cumulative 78.4 hours Start 2025.05.05 @ 22:10:11 End 2025.05.05 @ 22:18:53 Sessions 1 Manual Loads 0 Difficulty Rogue Special Mode None Game No. 202 Rogue 202 Adventurer 0 Explorer 0 Win Type - Total 1 Types 1/0/0/0/0/0/0/0/0/0 Lore% 34 Gallery% 43 Achievement% 35 Wizard Run 0 Options --------- Layout 0 ASCII 0 Keyboard 0 Movement Numpad Keybinds 0 Fullscreen 2 Font 18/Terminus Map View 76x50 Zoom Use 0% Tactical HUD 1 Map Filters NONE Filters NONE Steam 1 RUN: a5ef764e-4080-4a89-a2fb-da9437902ab9